bitfinex-derivatives/quotes_SOLF0:USTF0_20260304
["timestamp","ask_amount","ask_price","bid_price","bid_amount"]
[1772608912656,3.98416247,85.865,85.824,10.487]
[1772608913053,1.56490252,85.86,85.813,14.44694896]
[1772608913358,1.56490252,85.85,85.81,1.56490252]
[1772608913656,3.98416247,85.859,85.811,3.95894896]
[1772608916161,3.98416247,85.859,85.814,10.488]
[1772608916360,3.98416247,85.859,85.82,1.56490252]
[1772608918764,3.98416247,85.859,85.769,21.76909076]
[1772608918765,1.56490252,85.85,85.81,1.56490252]
[1772608919652,1.56490252,85.85,85.81,5.52385148]
[1772608920363,1.56490252,85.85,85.811,10.488]
[1772608920554,1.56490252,85.85,85.81,3.95894896]
[1772608920756,1.56490252,85.84,85.8,1.56490252]
[1772608921555,1.56490252,85.84,85.797,3.95894896]
[1772608922259,1.56490252,85.84,85.8,12.05490252]
[1772608922567,1.56490252,85.84,85.8,16.01385148]
[1772608923566,3.98416247,85.849,85.8,16.01385148]
[1772608923968,1.56490252,85.84,85.8,16.01385148]
[1772608924469,3.98416247,85.849,85.81,5.52385148]
[1772608925176,15.55979003,85.866,85.831,3.95894896]
[1772608925872,15.55979003,85.866,85.84,1.56490252]
[1772608926567,0.00079003,85.866,85.85,1.56490252]
[1772608926967,3.98416247,85.908,85.865,3.95894896]
[1772608927168,3.98416247,85.908,85.87,1.56490252]
[1772608928469,3.98416247,85.908,85.869,10.481]
[1772608928774,3.98416247,85.908,85.848,3.95894896]
[1772608928971,3.98416247,85.908,85.859,3.95894896]
[1772608929274,3.98416247,85.938,85.861,3.95894896]
[1772608929476,3.98416247,85.938,85.877,3.95894896]
[1772608930469,3.98416247,85.929,85.877,3.95894896]
[1772608933070,4.64659506,85.95,85.86,4.64659506]
[1772608933071,3.98416247,85.945,85.889,3.95894896]
[1772608934470,3.98416247,85.945,85.877,10.48]
[1772608934678,3.98416247,85.945,85.877,14.43894896]
[1772608935067,3.98416247,85.943,85.881,10.48]
[1772608935376,3.98416247,85.943,85.882,3.95894896]
[1772608936077,3.98416247,85.943,85.885,3.95894896]
[1772608936677,3.98416247,85.929,85.869,3.95894896]
[1772608937074,3.98416247,85.929,85.862,10.482]
[1772608937669,3.98416247,85.909,85.85,10.484]
[1772608938578,3.98416247,85.909,85.85,14.43800795]
[1772608938779,3.82314998,85.907,85.835,3.95400795]
[1772608938979,3.82314998,85.889,85.835,3.95400795]
[1772608939372,3.82314998,85.889,85.819,3.95400795]
[1772608939677,8.46974504,85.87,85.819,3.95400795]
[1772608941278,3.84278214,85.869,85.819,3.95400795]
[1772608942476,3.84278214,85.869,85.82,3.62142806]
[1772608944777,3.84278214,85.869,85.822,3.62142806]
[1772608946382,3.84278214,85.869,85.823,10.487]
[1772608946580,3.84278214,85.869,85.824,3.62142806]
[1772608947784,3.84278214,85.869,85.827,3.62142806]
[1772608947987,3.84278214,85.892,85.827,3.62142806]
[1772608948687,3.84278214,85.919,85.841,3.62142806]
[1772608949582,3.84278214,85.916,85.854,3.62142806]
[1772608950587,3.84278214,85.916,85.857,3.62142806]
[1772608952386,3.84278214,85.916,85.859,3.62142806]
[1772608953088,3.84278214,85.916,85.866,3.62142806]
[1772608953289,3.84278214,85.914,85.866,3.62142806]
[1772608953486,3.84278214,85.914,85.852,3.62142806]
[1772608954288,10.477,85.904,85.852,3.62142806]
[1772608955589,3.84278214,85.914,85.853,3.62142806]
[1772608956989,4.64729844,85.92,85.83,4.64729844]
[1772608956990,3.84278214,85.912,85.855,3.62142806]
[1772608958086,3.84278214,85.91,85.855,3.62142806]
[1772608959090,3.84278214,85.906,85.855,3.62142806]
[1772608962101,3.84278214,85.904,85.854,10.483]
[1772608962594,3.84278214,85.904,85.854,14.10442806]
[1772608962795,3.84278214,85.904,85.83,4.64729844]
[1772608962796,3.84278214,85.902,85.841,3.62142806]
[1772608963401,3.84278214,85.902,85.853,10.483]
[1772608965103,3.84278214,85.902,85.853,14.10442806]
[1772608965304,3.84278214,85.902,85.854,3.62142806]
[1772608966405,3.84278214,85.902,85.857,3.62142806]
[1772608967198,3.84278214,85.902,85.862,10.482]
[1772608967394,3.84278214,85.902,85.857,3.62142806]
[1772608968200,3.84278214,85.902,85.859,10.482]
[1772608969306,3.84278214,85.902,85.864,3.84706881]
[1772608970106,3.95436712,85.917,85.868,3.84706881]
[1772608976117,3.95436712,85.915,85.855,3.84706881]
[1772608976511,5.51629668,85.9,85.855,3.84706881]
[1772608977416,5.51629668,85.9,85.857,3.84706881]
[1772608978316,5.51629668,85.9,85.858,10.483]
[1772608979019,1.56192956,85.89,85.857,3.84706881]
[1772608980717,3.95436712,85.889,85.843,3.84706881]
[1772608980911,3.95436712,85.879,85.84,1.56192956]
[1772608982215,3.95436712,85.879,85.841,3.84706881]
[1772608982415,3.95436712,85.906,85.86,1.56192956]
[1772608982612,3.95436712,85.906,85.861,3.84706881]
[1772608983018,1.56192956,85.92,85.871,3.84706881]
[1772608983318,3.95436712,85.921,85.881,3.84706881]
[1772608984116,3.95436712,85.919,85.881,3.84706881]
[1772608985623,3.95436712,85.919,85.881,14.32706881]
[1772608985820,3.95436712,85.932,85.89,1.56192956]
[1772608986119,3.95436712,85.932,85.891,3.84706881]
[1772608986324,3.95436712,85.932,85.893,10.478]
[1772608987622,3.95436712,85.932,85.9,1.56192956]
[1772608987823,12.03392956,85.95,85.9,1.56192956]
[1772608987824,3.95436712,85.945,85.9,1.56192956]
[1772608988720,1.56192956,85.94,85.9,5.40899837]
[1772608988925,1.56192956,85.94,85.901,3.84706881]
[1772608989221,3.95436712,85.945,85.903,3.84706881]
[1772608989420,1.56192956,85.95,85.91,5.40899837]
[1772608991319,3.95436712,85.958,85.911,3.84706881]
[1772608991721,3.95436712,85.958,85.92,1.56192956]
[1772608991919,3.95436712,85.958,85.911,3.84706881]
[1772608993221,1.56192956,85.93,85.89,1.56192956]
[1772608993827,3.95436712,85.939,85.89,5.40899837]
[1772608994528,3.95436712,85.939,85.891,3.84706881]
[1772608996830,1.56192956,85.93,85.891,3.84706881]
[1772608997028,3.95436712,85.929,85.891,3.84706881]
[1772609005134,3.95436712,85.929,85.88,12.04192956]
[1772609006139,3.95436712,85.929,85.881,3.94955668]
[1772609008142,5.2218111,85.92,85.881,3.94955668]
[1772609009142,3.65988154,85.92,85.881,3.94955668]
[1772609009640,3.65988154,85.919,85.87,15.99248624]
[1772609009841,3.65988154,85.899,85.856,3.94955668]
[1772609010232,3.65988154,85.899,85.86,1.56192956]
[1772609010439,3.65988154,85.911,85.871,3.94955668]
[1772609010639,3.65988154,85.911,85.88,1.56192956]
[1772609010837,3.65988154,85.923,85.88,1.56192956]
[1772609011037,3.65988154,85.923,85.881,3.94955668]
[1772609011242,3.65988154,85.936,85.89,5.51148624]
[1772609012043,1.56192956,85.93,85.89,5.51148624]
[1772609012242,1.56192956,85.93,85.89,15.99048624]
[1772609012844,3.65988154,85.929,85.89,3.94955668]
[1772609013145,3.65988154,85.919,85.875,3.94955668]
[1772609014838,3.65988154,85.919,85.876,10.48]
[1772609015034,3.65988154,85.919,85.877,3.94955668]
[1772609016244,3.65988154,85.919,85.879,10.48]
[1772609017544,3.65988154,85.919,85.877,3.94955668]
[1772609017744,3.65988154,85.919,85.87,12.04215207]
[1772609017745,3.65988154,85.909,85.87,10.481]
[1772609020451,3.65988154,85.909,85.87,14.43055668]
[1772609021349,3.65988154,85.909,85.871,3.94955668]
[1772609023550,3.65988154,85.909,85.874,3.94955668]
[1772609024446,1.56115207,85.92,85.881,3.94955668]
[1772609025851,5.22103361,85.92,85.881,3.94955668]
[1772609026253,5.22103361,85.92,85.882,10.48]
[1772609028853,3.6259632,85.919,85.882,10.48]
[1772609029052,3.6259632,85.919,85.881,3.94955668]
[1772609031151,3.6259632,85.919,85.87,5.23391507]
[1772609031358,3.6259632,85.909,85.871,3.672763]
[1772609032759,3.6259632,85.926,85.871,3.672763]
[1772609032959,3.6259632,85.939,85.891,3.672763]
[1772609033258,3.6259632,85.939,85.9,1.56115207]
[1772609033456,3.6259632,85.939,85.901,3.672763]
[1772609035060,10.472,85.949,85.91,5.23391507]
[1772609035261,14.0979632,85.949,85.91,5.23391507]
[1772609035762,3.6259632,85.948,85.91,1.56115207]
[1772609036069,1.56115207,85.95,85.9,5.23391507]
[1772609036070,3.6259632,85.945,85.9,5.23391507]
[1772609036270,3.6259632,85.945,85.901,3.672763]
[1772609037263,14.0979632,85.943,85.901,3.672763]
[1772609038162,3.6259632,85.942,85.901,3.672763]
[1772609039263,3.6259632,85.939,85.901,3.672763]
[1772609040566,3.6259632,85.952,85.92,1.56115207]
[1772609040763,10.85615203,85.974,85.92,1.56115207]
[1772609040764,3.6259632,85.964,85.921,3.672763]
[1772609042861,62.0,85.95,85.921,3.672763]
[1772609044763,3.6259632,85.949,85.91,1.56115207]
[1772609045564,3.6259632,85.949,85.905,3.672763]
[1772609046762,3.6259632,85.949,85.91,1.56115207]
[1772609047269,3.6259632,85.949,85.905,3.672763]
[1772609047470,3.6259632,85.939,85.9,1.56115207]
[1772609048763,3.6259632,85.939,85.893,3.672763]
[1772609049473,3.6259632,85.939,85.9,1.56115207]
[1772609049867,3.6259632,85.939,85.893,3.672763]
[1772609050064,3.6259632,85.929,85.893,3.672763]
[1772609051367,3.6259632,85.94,85.901,3.672763]
[1772609051573,62.0,85.95,85.911,3.672763]
[1772609053371,62.0,85.95,85.92,1.56115207]
[1772609053977,3.6259632,85.966,85.93,1.56115207]
[1772609054971,62.0,85.96,85.921,3.672763]
[1772609055176,62.0,85.96,85.931,3.672763]
[1772609055383,3.6259632,85.978,85.931,3.672763]
[1772609055676,3.6259632,85.978,85.94,5.23391507]
[1772609055879,3.6259632,85.978,85.94,3.672763]
[1772609056473,62.0,85.97,85.94,3.672763]
[1772609056783,62.0,85.97,85.941,3.672763]
[1772609057874,62.0,85.97,85.931,10.474]
[1772609058475,62.0,85.97,85.931,14.22351356]
[1772609058676,62.0,85.97,85.94,5.31066563]
[1772609058877,62.0,85.97,85.94,3.74951356]
[1772609060284,62.0,85.97,85.94,5.31066563]
[1772609061283,62.0,85.97,85.94,1.56115207]
[1772609061480,62.0,85.97,85.931,10.474]
[1772609061481,3.81215325,85.969,85.932,3.83552895]
[1772609061883,3.81215325,85.969,85.94,1.56115207]
[1772609062486,62.0,85.97,85.941,3.83552895]
[1772609063086,43.27,85.97,85.941,3.83552895]
[1772609063290,3.81215325,85.998,85.962,10.47]
[1772609063487,3.81215325,85.998,85.97,1.56115207]
[1772609063688,22.36577344,86.019,85.97,1.56115207]
[1772609063889,22.36577344,86.019,85.98,1.56115207]
[1772609064186,62.0,86.01,85.972,10.469]
[1772609064591,62.0,86.01,85.924,21.61160786]
[1772609064592,22.36577344,86.019,85.981,10.468]
[1772609065696,62.0,86.01,85.981,10.468]
[1772609066689,22.36577344,86.019,85.981,10.468]
[1772609066997,22.36577344,86.019,85.99,1.56115207]
[1772609067195,22.36577344,86.019,85.981,10.468]
[1772609067893,22.42204136,86.009,85.94,14.30898837]
[1772609068195,22.42204136,85.999,85.95,1.56115207]
[1772609068798,62.0,85.99,85.96,1.56115207]
[1772609070302,22.42204136,85.999,85.962,10.47]
[1772609070893,298.0,86.047,85.98,1.56115207]
[1772609070894,22.43140868,86.019,85.98,1.56115207]
[1772609071296,51.0,86.01,85.98,1.56115207]
[1772609071600,51.0,86.01,85.981,10.468]
[1772609072500,22.43140868,86.019,85.97,1.56115207]
[1772609072798,22.45907041,86.009,85.96,1.56115207]
[1772609073401,54.45883244,86.0,85.96,1.56115207]
[1772609073701,22.45883244,85.999,85.96,1.56115207]
[1772609075494,22.45883244,85.999,85.946,10.472]
[1772609075701,22.46273197,85.989,85.95,1.56115207]
[1772609076501,22.46273197,85.989,85.946,10.472]
[1772609076896,22.46273197,85.979,85.935,10.473]
[1772609077096,22.46273197,85.979,85.896,14.30898837]
[1772609077299,22.46273197,85.979,85.93,1.55849784]
[1772609078197,22.46273197,85.979,85.932,10.474]
[1772609078593,22.46273197,85.979,85.94,1.55849784]
[1772609080394,22.46273197,85.979,85.932,10.474]
[1772609080703,22.46273197,85.979,85.93,1.55849784]
[1772609080704,22.48094698,85.969,85.922,10.475]
[1772609081097,22.48094698,85.969,85.92,1.55849784]
[1772609081694,22.49659546,85.959,85.911,10.476]
[1772609082500,22.49659546,85.959,85.92,1.55849784]
[1772609082805,22.49659546,85.959,85.93,1.55849784]
[1772609083698,22.49659546,85.959,85.92,12.03349784]
[1772609084502,22.49659546,85.959,85.93,1.55849784]
[1772609085400,22.49659546,85.959,85.92,12.03349784]
[1772609086801,22.49659546,85.959,85.93,1.55849784]
[1772609087500,22.49659546,85.959,85.92,12.03349784]
[1772609088104,22.49659546,85.959,85.929,10.474]
[1772609088604,22.49659546,85.959,85.93,1.55849784]
[1772609091900,22.49659546,85.959,85.92,1.55849784]
[1772609094011,22.49659546,85.959,85.913,10.476]
[1772609094510,22.49659546,85.959,85.91,1.55849784]
[1772609094712,22.49659546,85.959,85.92,1.55849784]
[1772609097312,22.49659546,85.959,85.92,12.03349784]
[1772609103014,21.68618433,85.949,85.91,1.55849784]
[1772609104108,32.0,86.0,85.92,1.55849784]
[1772609104109,21.67639843,85.969,85.92,1.55849784]
[1772609104510,21.67639843,85.969,85.93,1.55849784]
[1772609106014,21.67639843,85.969,85.92,12.03349784]
[1772609111013,21.67639843,85.969,85.93,1.55849784]
[1772609112319,21.67639843,85.969,85.92,15.93413163]
[1772609112820,21.66216311,85.959,85.912,10.476]
[1772609113611,21.57965643,85.949,85.908,14.37563379]
[1772609113919,21.57965643,85.949,85.905,14.37563379]
[1772609114421,21.57965643,85.949,85.92,1.55849784]
[1772609115115,21.57965643,85.949,85.911,10.476]
[1772609116526,21.5797355,85.969,85.93,1.55849784]
[1772609117114,21.5797355,85.969,85.922,14.37563379]
[1772609117322,21.5797355,85.969,85.925,14.37563379]
[1772609118322,0.72372112,85.939,85.9,1.55849784]
[1772609118517,0.72372112,85.939,85.902,10.477]
[1772609119017,0.72372112,85.939,85.892,10.478]
[1772609119220,0.72372112,85.939,85.893,3.69131924]
[1772609119522,0.72372112,85.939,85.9,1.55849784]
[1772609120224,0.72372112,85.939,85.901,10.477]
[1772609121128,0.72372112,85.939,85.906,10.477]
[1772609125333,0.72372112,85.939,85.91,1.55849784]
[1772609126938,0.72372112,85.939,85.906,10.477]
[1772609127829,0.72372112,85.939,85.902,3.64984391]
[1772609129137,0.72372112,85.939,85.91,1.55849784]
[1772609129340,0.72372112,85.939,85.89,285.71838156]
[1772609129637,8.7294968,85.982,85.88,1.55849784]
[1772609129638,0.55951523,85.919,85.88,1.55849784]
[1772609129826,0.55951523,85.919,85.875,3.70608173]
[1772609130227,0.55951523,85.919,85.89,1.55849784]
[1772609130528,0.55951523,85.919,85.881,3.70608173]
[1772609132438,62.0,85.91,85.881,3.70608173]
[1772609133835,0.55951523,85.919,85.89,1.55849784]
[1772609134940,62.0,85.91,85.89,1.55849784]
[1772609136440,62.0,85.91,85.89,1.56055454]
[1772609143645,0.4949321,85.93,85.9,1.56055454]
[1772609144047,0.4949321,85.93,85.91,1.56055454]
[1772609144648,62.0,85.92,85.91,1.56055454]
[1772609144949,0.4949321,85.93,85.892,3.73837329]
[1772609144950,0.4949321,85.93,85.9,1.56055454]
[1772609145838,62.0,85.92,85.9,1.56055454]
[1772609147349,0.49519305,85.919,85.89,1.56055454]
[1772609147949,0.49519305,85.919,85.88,1.56055454]
[1772609148152,0.49519305,85.919,85.88,5.2988332]
[1772609148350,0.49519305,85.919,85.89,1.56055454]
[1772609149348,62.0,85.92,85.901,3.73090148]
[1772609150957,0.51114258,85.934,85.901,3.73090148]
[1772609151948,62.0,85.92,85.901,3.73090148]
[1772609153359,0.5215551,85.945,85.901,3.73090148]
[1772609154353,50.0,85.93,85.901,3.73090148]
[1772609160166,0.50520888,85.935,85.901,3.73090148]
[1772609161166,62.0,85.93,85.901,3.73090148]
[1772609161571,0.51210314,85.929,85.89,1.56055454]
[1772609161769,0.51210314,85.919,85.88,3.7304212]
[1772609162571,0.51210314,85.919,85.882,10.48]
[1772609162968,0.51210314,85.919,85.882,14.2104212]
[1772609163169,0.51210314,85.919,85.883,3.7356064]
[1772609163964,63.56055454,85.93,85.89,1.56055454]
[1772609163965,62.0,85.93,85.89,1.56055454]
[1772609164163,62.0,85.93,85.901,3.7356064]
[1772609165267,62.0,85.93,85.905,3.74012298]
[1772609165669,0.49269958,85.957,85.92,5.30067752]
[1772609166464,0.49269958,85.957,85.92,3.74012298]
[1772609166772,62.0,85.95,85.92,3.74012298]
[1772609167570,63.56055454,85.95,85.91,1.56055454]
[1772609168266,0.45182845,85.949,85.91,1.56055454]
[1772609168468,1.56055454,85.93,85.89,1.56055454]
[1772609168672,0.45182845,85.919,85.873,3.76055855]
[1772609170277,0.45182845,85.919,85.875,3.74650676]
[1772609170475,0.47993203,85.938,85.891,3.74650676]
[1772609171471,0.47993203,85.938,85.892,3.74385586]
[1772609171677,0.48523382,85.929,85.88,5.3044104]
[1772609171869,2.04578836,85.92,85.88,3.74385586]
[1772609175180,2.04578836,85.92,85.88,5.3044104]
[1772609175776,1.56055454,85.91,85.868,3.74008704]
[1772609175983,0.49277147,85.909,85.868,3.74008704]
[1772609176579,1.56055454,85.91,85.871,3.74008704]
[1772609176776,0.49277147,85.919,85.871,3.74008704]
[1772609177177,0.49277147,85.919,85.873,3.74824559]
[1772609177387,0.49277147,85.919,85.881,3.74824559]
[1772609177578,2.0370089,85.93,85.881,3.74824559]
[1772609178077,0.4763158,85.948,85.902,3.97446931]
[1772609178780,0.47632398,85.939,85.902,3.97446931]
[1772609178984,0.47632398,85.939,85.893,3.97446931]
[1772609181079,0.47632398,85.939,85.858,28.75126758]
[1772609181080,1.56055454,85.92,85.88,5.31962379]
[1772609181280,1.56055454,85.92,85.88,3.75906925]
[1772609181483,1.56055454,85.92,85.881,3.73735565]
[1772609182379,1.56055454,85.92,85.882,3.73735565]
[1772609184987,0.77994325,85.919,85.872,3.73735565]
[1772609185288,1.56055454,85.92,85.872,3.73735565]
[1772609185487,1.56055454,85.92,85.87,1.56055454]
[1772609185488,1.56055454,85.92,85.883,3.73735565]
[1772609187688,1.56055454,85.93,85.886,3.73735565]
[1772609187893,1.56055454,85.94,85.891,3.73735565]
[1772609189190,1.56055454,85.94,85.894,3.73735565]
[1772609190488,1.56055454,85.94,85.88,21.67417295]
[1772609190489,0.89894721,85.929,85.881,3.73735565]
[1772609191693,0.89894721,85.929,85.882,3.73735565]
[1772609191995,0.89894721,85.929,85.875,21.67417295]
[1772609191996,2.83867425,85.94,85.891,3.73735565]
[1772609192695,2.83867425,85.94,85.893,3.73735565]
[1772609193090,2.83867425,85.94,85.9,1.56055454]
[1772609193295,2.83867425,85.94,85.901,3.73735565]
[1772609194296,63.56055454,85.95,85.902,3.73735565]
[1772609195295,63.56055454,85.95,85.9,1.56055454]
[1772609195296,63.56055454,85.95,85.904,3.73735565]
[1772609196198,63.25799292,85.95,85.904,3.73735565]
[1772609196394,64.81854746,85.95,85.904,3.73735565]
[1772609196596,64.8179087,85.95,85.904,3.73735565]
[1772609198100,1.27917405,85.949,85.904,3.73735565]
[1772609199999,62.0,85.95,85.914,3.73735565]
[1772609200200,1.28294821,85.979,85.931,3.73735565]
[1772609200504,1.28294821,85.979,85.94,1.55991578]
[1772609200704,1.28294821,85.979,85.94,5.29727143]
[1772609200906,1.28294821,85.979,85.941,3.73735565]
[1772609201106,62.0,85.97,85.941,3.73735565]
[1772609203601,62.0,85.97,85.942,3.73735565]
[1772609203804,1.55991578,85.99,85.95,1.55991578]
[1772609204007,195.340206,86.009,85.971,3.73735565]
[1772609204303,1.55991578,86.02,85.972,3.73735565]
[1772609204696,1.26891378,86.038,85.981,3.73735565]
[1772609204905,1.55991578,86.02,85.981,3.73735565]
[1772609205597,1.26891378,86.029,85.981,3.73735565]
[1772609208504,62.0,86.02,85.981,3.73735565]
[1772609210311,62.0,86.02,85.991,3.69048779]
[1772609210711,62.0,86.02,85.98,1.55991578]
[1772609211015,1.55991578,86.01,85.979,3.69048779]
[1772609211708,1.55991578,86.0,85.965,3.69048779]
[1772609211912,1.55991578,86.0,85.952,3.69048779]
[1772609212813,1.55991578,85.99,85.952,3.69048779]
[1772609213014,1.55991578,86.0,85.954,3.69048779]
[1772609213214,1.55991578,86.0,85.961,3.69048779]
[1772609214314,1.55991578,86.01,85.961,3.69048779]
[1772609214514,1.55991578,86.01,85.971,3.69048779]
[1772609215211,63.55991578,86.02,85.971,3.69048779]
[1772609215412,1.21841472,86.019,85.971,3.69048779]
[1772609215611,1.55991578,86.01,85.971,3.69048779]
[1772609218012,1.55991578,86.01,85.962,10.469]
[1772609218013,62.0,86.02,85.981,3.69048779]
[1772609221421,63.55991578,86.02,85.981,3.69048779]
[1772609221622,1.55991578,86.0,85.959,3.69048779]
[1772609221825,2.73902465,86.0,85.959,3.69048779]
[1772609222218,1.17910887,86.0,85.959,3.69048779]
[1772609222522,2.73902465,86.0,85.96,1.55991578]
[1772609222922,63.55991578,86.02,85.971,3.69048779]
[1772609223119,63.55991578,86.02,85.98,1.55991578]
[1772609224624,1.55991578,86.01,85.971,3.69048779]
[1772609225826,1.18613292,86.019,85.971,3.69048779]
[1772609226020,1.55991578,86.01,85.971,3.69048779]
[1772609226917,1.18613292,86.019,85.971,3.69048779]
[1772609228223,64.72389192,86.02,85.983,3.69048779]
[1772609228720,1.16397614,86.019,85.971,3.69048779]
[1772609228920,1.16397614,86.019,85.974,3.69048779]
[1772609229126,1.16397614,86.019,85.98,1.55991578]
[1772609230024,1.16397614,86.019,85.974,3.69048779]
[1772609231828,1.16397614,86.019,85.975,3.69048779]
[1772609232032,63.55991578,86.02,85.981,3.69048779]
[1772609234731,1.55991578,86.01,85.976,10.467]
[1772609235533,1.55991578,86.01,85.971,3.69048779]
[1772609236132,1.55991578,86.01,85.973,14.15848779]
[1772609236433,1.55991578,86.01,85.974,3.69048779]
[1772609236636,62.0,86.02,85.929,21.67417295]
[1772609236637,62.0,86.02,85.982,3.69048779]
[1772609237034,62.0,86.02,85.991,3.69048779]
[1772609240137,63.55991578,86.02,85.98,1.55991578]
[1772609240829,1.09206759,86.019,85.979,3.92324323]
[1772609241438,1.09206759,86.019,85.954,285.52799034]
[1772609241439,63.55991578,86.02,85.981,3.87443202]
[1772609242533,62.0,86.02,85.981,3.87443202]
[1772609242835,1.55991578,86.01,85.97,1.55991578]
[1772609243143,1.55991578,86.01,85.971,3.87443202]
[1772609244239,1.55991578,86.01,85.973,10.467]
[1772609244434,1.55991578,86.01,85.973,14.34143202]
[1772609244635,1.06162647,86.019,85.973,14.34143202]
[1772609245439,1.55991578,86.01,85.973,14.34143202]
[1772609250243,1.55991578,86.01,85.975,10.467]
[1772609251139,63.55991578,86.02,85.98,1.55991578]
[1772609251442,0.96379882,86.031,85.991,3.87443202]
[1772609251937,1.55991578,86.04,85.994,3.87443202]
[1772609252135,2.47721968,86.04,85.994,3.87443202]
[1772609252332,50.0,86.03,85.994,3.87443202]
[1772609253343,50.0,86.03,86.001,10.464]
[1772609254138,51.55991578,86.03,85.994,3.87443202]
[1772609254340,0.90413061,86.029,85.982,3.87443202]
[1772609254842,0.90413061,86.029,85.991,10.465]
[1772609256039,0.90413061,86.029,85.991,14.33943202]
[1772609256941,0.90413061,86.029,85.997,10.465]
[1772609258149,50.0,86.03,86.001,10.464]
[1772609258446,51.55661673,86.03,86.001,10.464]
[1772609259752,50.0,86.03,86.001,10.464]
[1772609260453,50.0,86.03,86.002,3.87443202]
[1772609261347,0.93617375,86.029,85.989,3.87443202]
[1772609261855,0.93617375,86.029,85.991,3.87443202]
[1772609266452,1.55661673,86.02,85.991,3.87443202]
[1772609266851,0.93617375,86.029,85.991,3.87443202]
[1772609267658,0.93617375,86.029,85.992,3.87443202]
[1772609268857,0.93617375,86.029,85.977,21.67417295]
[1772609269061,1.55661673,86.0,85.957,3.79105941]
[1772609270462,1.55661673,86.0,85.961,3.79105941]
[1772609271755,1.55661673,86.01,85.971,3.79105941]
[1772609275360,1.25359857,86.015,85.971,3.79105941]
[1772609275562,50.0,86.03,85.981,3.79105941]
[1772609275762,50.0,86.03,85.939,28.75126758]
[1772609275763,50.0,86.03,85.991,3.79105941]
[1772609275965,51.11253576,86.03,85.991,3.79105941]
[1772609276165,1.11253576,86.029,85.991,3.79105941]
[1772609277767,50.0,86.03,85.991,3.79105941]
[1772609278164,51.55661673,86.03,85.991,3.79105941]
[1772609278868,1.55661673,86.0,85.96,1.55661673]
[1772609279167,1.55661673,86.0,85.96,5.34767614]
[1772609279358,1.55661673,86.0,85.961,3.79105941]
[1772609279959,1.55661673,85.99,85.961,3.79105941]
[1772609280458,1.20102482,85.999,85.961,3.79105941]
[1772609280764,1.20102482,85.999,85.95,1.55661673]
[1772609280765,1.55661673,85.98,85.939,3.79105941]
[1772609281165,1.55661673,85.98,85.944,3.79105941]
[1772609281859,1.20102482,85.989,85.94,1.55661673]
[1772609282061,9.26846612,86.029,85.884,20.957]
[1772609282062,1.51175437,85.979,85.932,3.79105941]
[1772609282260,1.55661673,85.98,85.941,3.79105941]
[1772609282466,1.55661673,86.0,85.951,3.79105941]
[1772609282667,1.51175437,85.979,85.932,3.79105941]
[1772609282864,1.55661673,85.97,85.932,3.79105941]
[1772609283263,1.51175437,85.979,85.932,3.79105941]
[1772609283571,1.51175437,85.979,85.94,1.55661673]
[1772609284063,1.51175437,85.979,85.932,3.79105941]
[1772609284775,1.51175437,85.979,85.93,1.55661673]
[1772609284776,1.51175437,85.979,85.934,3.79105941]
[1772609285075,1.55661673,85.97,85.934,3.79105941]
[1772609285368,1.51175437,85.979,85.934,3.79105941]
[1772609286169,10.465,85.995,85.934,3.79105941]
[1772609286170,3.03987831,85.97,85.934,3.79105941]
[1772609286368,1.48326158,85.969,85.924,10.473]
[1772609286774,1.48326158,85.969,85.927,3.79105941]
[1772609286975,1.48326158,85.969,85.93,1.55661673]
[1772609287174,1.55661673,85.98,85.931,3.79105941]
[1772609287475,1.55661673,85.98,85.933,3.79105941]
[1772609287667,1.48326158,85.982,85.941,3.79105941]
[1772609288071,1.55661673,85.98,85.941,3.79105941]
[1772609288469,1.5019861,85.979,85.941,3.79105941]
[1772609292078,50.0,86.03,85.885,28.75126758]
[1772609292079,1.55661673,85.99,85.951,3.79105941]
[1772609292775,1.51484062,86.009,85.97,1.55661673]
[1772609294775,1.51484062,86.009,85.97,5.34767614]
[1772609298577,1.51484062,86.009,85.97,3.79105941]
[1772609299582,10.461,86.027,85.961,10.469]
[1772609299583,3.05633993,86.0,85.961,10.469]
[1772609299780,1.4997232,86.0,85.965,14.39561671]
[1772609299973,1.55661673,86.0,85.966,3.92761671]
[1772609301888,1.50962086,86.009,85.966,3.92761671]
[1772609302085,1.50962086,86.009,85.968,3.68244828]
[1772609303086,1.50962086,85.999,85.951,3.68244828]
[1772609303281,1.55661673,86.01,85.962,3.68244828]
[1772609304181,1.55661673,86.01,85.964,3.68244828]
[1772609305291,1.55661673,86.01,85.966,3.68244828]
[1772609305587,1.50237377,86.012,85.97,1.55661673]
[1772609305883,1.55661673,86.02,85.971,3.68244828]
[1772609306189,1.490102,86.024,85.981,3.68244828]
[1772609306385,51.55661673,86.03,85.981,3.68244828]